[Event "*** Titled Tuesday Blitz"]
[Site "Chess.com"]
[Date "2021.04.06"]
[Round "2"]
[White "Pliukha_Mikhail"]
[Black "KaterynaLagno"]
[Result "1-0"]
[WhiteElo "2496"]
[BlackElo "2665"]
[TimeControl "180+1"]
[EndTime "10:18:20 PDT"]
[Termination "Pliukha_Mikhail won on time"]

1. e4 {[%clk 0:03:00.3]} 1... e5 {[%clk 0:03:00.1]} 2. Nf3 {[%clk 0:03:00.2]}
2... Nc6 {[%clk 0:03:00.8]} 3. d4 {[%clk 0:03:01.1]} 3... exd4 {[%clk 0:02:59]}
4. Bc4 {[%clk 0:03:02]} 4... Bc5 {[%clk 0:02:50.4]} 5. O-O {[%clk 0:03:02.5]}
5... d6 {[%clk 0:02:45.1]} 6. h3 {[%clk 0:03:02.6]} 6... Nf6 {[%clk 0:02:44]} 7.
c3 {[%clk 0:03:03.5]} 7... dxc3 {[%clk 0:02:36.5]} 8. Nxc3 {[%clk 0:03:04.4]}
8... h6 {[%clk 0:02:31.2]} 9. Bf4 {[%clk 0:03:01.3]} 9... O-O {[%clk 0:02:30.4]}
10. a3 {[%clk 0:03:00.4]} 10... a6 {[%clk 0:02:28.7]} 11. b4 {[%clk 0:02:58.9]}
11... Ba7 {[%clk 0:02:26.7]} 12. Re1 {[%clk 0:02:59.4]} 12... Ne7 {[%clk
0:02:20.2]} 13. e5 {[%clk 0:02:57.4]} 13... dxe5 {[%clk 0:02:16.7]} 14. Bxe5
{[%clk 0:02:58.3]} 14... Ng6 {[%clk 0:02:13.8]} 15. Qxd8 {[%clk 0:02:57.3]}
15... Rxd8 {[%clk 0:02:14.7]} 16. Bxc7 {[%clk 0:02:56.1]} 16... Re8 {[%clk
0:02:06.8]} 17. Ne5 {[%clk 0:02:46]} 17... Nxe5 {[%clk 0:02:02.2]} 18. Bxe5
{[%clk 0:02:46.9]} 18... Be6 {[%clk 0:02:01.1]} 19. Bxe6 {[%clk 0:02:39.9]}
19... Rxe6 {[%clk 0:02:02]} 20. Bxf6 {[%clk 0:02:40.7]} 20... Rxf6 {[%clk
0:01:59.7]} 21. Ne4 {[%clk 0:02:37.1]} 21... Rc6 {[%clk 0:01:57]} 22. Rad1
{[%clk 0:02:34.3]} 22... Rc2 {[%clk 0:01:48.1]} 23. Rd2 {[%clk 0:02:34.6]} 23...
Rac8 {[%clk 0:01:47.2]} 24. Ree2 {[%clk 0:02:32.8]} 24... Rc1+ {[%clk
0:01:36.2]} 25. Kh2 {[%clk 0:02:33.2]} 25... R1c7 {[%clk 0:01:12.1]} 26. g3
{[%clk 0:02:26.6]} 26... h5 {[%clk 0:00:58.1]} 27. Kg2 {[%clk 0:02:25.8]} 27...
g6 {[%clk 0:00:55.7]} 28. Nf6+ {[%clk 0:02:24.2]} 28... Kg7 {[%clk 0:00:56]} 29.
Ne8+ {[%clk 0:02:24.1]} 29... Rxe8 {[%clk 0:00:52.4]} 30. Rxe8 {[%clk 0:02:25]}
30... Bb6 {[%clk 0:00:42.7]} 31. Rd6 {[%clk 0:02:23.4]} 31... Ba7 {[%clk
0:00:40.5]} 32. Ra8 {[%clk 0:02:23.1]} 32... b6 {[%clk 0:00:41]} 33. a4 {[%clk
0:02:17.6]} 33... Rb7 {[%clk 0:00:37.2]} 34. b5 {[%clk 0:02:17.5]} 34... axb5
{[%clk 0:00:37]} 35. axb5 {[%clk 0:02:18.4]} 35... Bb8 {[%clk 0:00:37.8]} 36.
Rc6 {[%clk 0:02:10.7]} 36... Be5 {[%clk 0:00:37.8]} 37. Rd8 {[%clk 0:02:06.6]}
37... Re7 {[%clk 0:00:27.9]} 38. Rd2 {[%clk 0:01:53.9]} 38... Rb7 {[%clk
0:00:22.9]} 39. f4 {[%clk 0:01:46.8]} 39... Bb8 {[%clk 0:00:13.8]} 40. Kf3
{[%clk 0:01:46]} 40... Ra7 {[%clk 0:00:05.2]} 41. Rd8 {[%clk 0:01:45.2]} 41...
Ra3+ {[%clk 0:00:05.4]} 42. Ke2 {[%clk 0:01:40.9]} 42... Ra2+ {[%clk 0:00:05.6]}
43. Kd1 {[%clk 0:01:40.3]} 43... Ra1+ {[%clk 0:00:04.4]} 44. Kc2 {[%clk
0:01:40.6]} 44... Ra2+ {[%clk 0:00:04.2]} 45. Kb1 {[%clk 0:01:41]} 45... Ra5
{[%clk 0:00:02.7]} 46. Rxb8 {[%clk 0:01:40.6]} 46... Rxb5+ {[%clk 0:00:03.6]}
47. Kc2 {[%clk 0:01:41.5]} 47... h4 {[%clk 0:00:04.4]} 48. gxh4 {[%clk
0:01:41.6]} 48... Rh5 {[%clk 0:00:05.1]} 49. Rbxb6 {[%clk 0:01:39.5]} 49... Rxh4
{[%clk 0:00:06]} 50. Rb3 {[%clk 0:01:39.1]} 50... Rxf4 {[%clk 0:00:06.2]} 51.
Kd2 {[%clk 0:01:39.8]} 51... Re4 {[%clk 0:00:05.8]} 52. Re3 {[%clk 0:01:39.4]}
52... Rd4+ {[%clk 0:00:06]} 53. Ke2 {[%clk 0:01:39.8]} 53... Rd7 {[%clk
0:00:06.1]} 54. Kf2 {[%clk 0:01:39.6]} 54... Ra7 {[%clk 0:00:06.2]} 55. Kg3
{[%clk 0:01:39.9]} 55... Rd7 {[%clk 0:00:05.6]} 56. Rc4 {[%clk 0:01:37.4]} 56...
Ra7 {[%clk 0:00:05.4]} 57. Rce4 {[%clk 0:01:37.8]} 57... Kf8 {[%clk 0:00:04.6]}
58. Re8+ {[%clk 0:01:37.5]} 58... Kg7 {[%clk 0:00:05]} 59. R8e7 {[%clk
0:01:38.4]} 1-0

[Event "*** Titled Tuesday Blitz"]
[Site "Chess.com"]
[Date "2021.04.06"]
[Round "2"]
[White "MPGM"]
[Black "malakismayil"]
[Result "1-0"]
[WhiteElo "2581"]
[BlackElo "2309"]
[TimeControl "180+1"]
[EndTime "10:18:20 PDT"]
[Termination "MPGM won by checkmate"]

1. Nf3 {[%clk 0:03:00.9]} 1... Nf6 {[%clk 0:02:59.4]} 2. d4 {[%clk 0:02:49.4]}
2... e6 {[%clk 0:02:59]} 3. c4 {[%clk 0:02:40.1]} 3... Bb4+ {[%clk 0:02:57.4]}
4. Bd2 {[%clk 0:02:36.7]} 4... Qe7 {[%clk 0:02:56.3]} 5. Nc3 {[%clk 0:02:30.6]}
5... O-O {[%clk 0:02:51.3]} 6. Qc2 {[%clk 0:02:20.3]} 6... b6 {[%clk 0:02:34.4]}
7. e4 {[%clk 0:02:10.7]} 7... e5 {[%clk 0:01:51]} 8. dxe5 {[%clk 0:01:50.2]}
8... Bxc3 {[%clk 0:01:24.2]} 9. Bxc3 {[%clk 0:01:47.2]} 9... Nh5 {[%clk
0:01:07.8]} 10. O-O-O {[%clk 0:01:39]} 10... Nc6 {[%clk 0:00:58.9]} 11. Qd2
{[%clk 0:01:08.2]} 11... Qe6 {[%clk 0:00:35]} 12. Rg1 {[%clk 0:00:49.6]} 12...
Qh6 {[%clk 0:00:15.6]} 13. g4 {[%clk 0:00:37.1]} 13... Qxd2+ {[%clk 0:00:08.1]}
14. Bxd2 {[%clk 0:00:38]} 14... Re8 {[%clk 0:00:07.6]} 15. gxh5 {[%clk
0:00:35.9]} 15... Nxe5 {[%clk 0:00:07.5]} 16. Nxe5 {[%clk 0:00:32.1]} 16... Rxe5
{[%clk 0:00:08.4]} 17. Bc3 {[%clk 0:00:26.5]} 17... Rxh5 {[%clk 0:00:05]} 18.
Bxg7 {[%clk 0:00:19.9]} 18... d6 {[%clk 0:00:04.4]} 19. Be2 {[%clk 0:00:14.3]}
19... Rh3 {[%clk 0:00:03.7]} 20. Rg2 {[%clk 0:00:08]} 20... h5 {[%clk
0:00:02.8]} 21. Rdg1 {[%clk 0:00:08.1]} 21... Kh7 {[%clk 0:00:02.9]} 22. Bf6
{[%clk 0:00:07.6]} 22... Bg4 {[%clk 0:00:03.1]} 23. Bxg4 {[%clk 0:00:07.1]}
23... hxg4 {[%clk 0:00:04]} 24. Rxg4 {[%clk 0:00:07.5]} 24... Rxh2 {[%clk
0:00:04.6]} 25. Rg7+ {[%clk 0:00:06.5]} 25... Kh6 {[%clk 0:00:04.9]} 26. Bd4
{[%clk 0:00:05.7]} 26... c5 {[%clk 0:00:04.2]} 27. Be3+ {[%clk 0:00:05.8]} 27...
Kh5 {[%clk 0:00:03.5]} 28. Rh7# {[%clk 0:00:06.3]} 1-0

[Event "*** Titled Tuesday Blitz"]
[Site "Chess.com"]
[Date "2021.04.06"]
[Round "2"]
[White "ZEN-22"]
[Black "ajedrez1101"]
[Result "1-0"]
[WhiteElo "2409"]
[BlackElo "2129"]
[TimeControl "180+1"]
[EndTime "10:18:20 PDT"]
[Termination "ZEN-22 won on time"]

1. d3 {[%clk 0:03:00.9]} 1... b6 {[%clk 0:02:58.4]} 2. g3 {[%clk 0:03:01.8]}
2... Bb7 {[%clk 0:02:58.7]} 3. Nf3 {[%clk 0:03:01.3]} 3... Bxf3 {[%clk
0:02:58.7]} 4. exf3 {[%clk 0:03:00.3]} 4... c5 {[%clk 0:02:57.9]} 5. Bg2 {[%clk
0:03:00.5]} 5... Nc6 {[%clk 0:02:58.4]} 6. f4 {[%clk 0:03:01.2]} 6... e6 {[%clk
0:02:58.3]} 7. O-O {[%clk 0:03:01.9]} 7... g6 {[%clk 0:02:55.2]} 8. d4 {[%clk
0:02:57.6]} 8... Nxd4 {[%clk 0:02:53.4]} 9. c3 {[%clk 0:02:58]} 9... Nc6 {[%clk
0:02:53]} 10. a4 {[%clk 0:02:51.4]} 10... Bg7 {[%clk 0:02:39.6]} 11. Na3 {[%clk
0:02:52.3]} 11... Nge7 {[%clk 0:02:33.4]} 12. Nb5 {[%clk 0:02:44.4]} 12... d5
{[%clk 0:02:30.6]} 13. Re1 {[%clk 0:02:34.1]} 13... O-O {[%clk 0:02:30.2]} 14.
h4 {[%clk 0:02:33.2]} 14... a6 {[%clk 0:02:23.8]} 15. Na3 {[%clk 0:02:32.9]}
15... h5 {[%clk 0:02:22.1]} 16. Nc2 {[%clk 0:02:32.3]} 16... Rc8 {[%clk
0:02:04.5]} 17. Qe2 {[%clk 0:02:24.9]} 17... c4 {[%clk 0:01:38.2]} 18. Ne3
{[%clk 0:02:24.9]} 18... Na5 {[%clk 0:01:34.3]} 19. Rd1 {[%clk 0:02:20.3]} 19...
Nb3 {[%clk 0:01:32.9]} 20. Rb1 {[%clk 0:02:19.1]} 20... Qe8 {[%clk 0:01:25.6]}
21. Bd2 {[%clk 0:02:16.2]} 21... Qxa4 {[%clk 0:01:24]} 22. Be1 {[%clk
0:02:14.3]} 22... Qe8 {[%clk 0:01:10.1]} 23. g4 {[%clk 0:02:14.4]} 23... hxg4
{[%clk 0:01:09.1]} 24. Qxg4 {[%clk 0:02:12.8]} 24... Nf5 {[%clk 0:01:00.8]} 25.
h5 {[%clk 0:02:02.2]} 25... Nxe3 {[%clk 0:00:45.2]} 26. fxe3 {[%clk 0:02:01.6]}
26... gxh5 {[%clk 0:00:45.1]} 27. Qxh5 {[%clk 0:02:00.5]} 27... f5 {[%clk
0:00:42.3]} 28. Qf3 {[%clk 0:01:55]} 28... Rf6 {[%clk 0:00:25.4]} 29. Bh4 {[%clk
0:01:53.1]} 29... Rh6 {[%clk 0:00:25.4]} 30. Bg5 {[%clk 0:01:49.4]} 30... Rh5
{[%clk 0:00:25.7]} 31. Kf2 {[%clk 0:01:48.2]} 31... Qg6 {[%clk 0:00:20.7]} 32.
Rh1 {[%clk 0:01:47.5]} 32... Rxh1 {[%clk 0:00:17.4]} 33. Rxh1 {[%clk 0:01:48.4]}
33... Kf7 {[%clk 0:00:17.8]} 34. Qg3 {[%clk 0:01:43.5]} 34... Nc5 {[%clk
0:00:16.2]} 35. Ra1 {[%clk 0:01:35.9]} 35... Rh8 {[%clk 0:00:15.6]} 36. Kg1
{[%clk 0:01:33.7]} 36... a5 {[%clk 0:00:15.6]} 37. Bf3 {[%clk 0:01:32.6]} 37...
Bf6 {[%clk 0:00:14.5]} 38. Kg2 {[%clk 0:01:25.3]} 38... Bxg5 {[%clk 0:00:12.5]}
39. fxg5 {[%clk 0:01:24.8]} 39... Nd3 {[%clk 0:00:11.5]} 40. Rh1 {[%clk
0:01:22.3]} 40... Rxh1 {[%clk 0:00:10.4]} 41. Kxh1 {[%clk 0:01:23.2]} 41... Qh7+
{[%clk 0:00:08.8]} 42. Kg2 {[%clk 0:01:20.7]} 42... Qg6 {[%clk 0:00:07]} 43.
Qc7+ {[%clk 0:01:19.8]} 43... Kg8 {[%clk 0:00:07.1]} 44. Qd8+ {[%clk 0:01:19]}
44... Kh7 {[%clk 0:00:07.3]} 45. Kg3 {[%clk 0:01:18.1]} 45... Ne5 {[%clk
0:00:05.4]} 46. Be2 {[%clk 0:01:17.3]} 46... Nf7 {[%clk 0:00:04.9]} 47. Qxb6
{[%clk 0:01:10.9]} 47... Qxg5+ {[%clk 0:00:05.3]} 48. Kf2 {[%clk 0:01:10.6]}
48... Qg6 {[%clk 0:00:04.3]} 49. Qxa5 {[%clk 0:01:09.2]} 49... Ne5 {[%clk
0:00:04.2]} 50. Qd8 {[%clk 0:01:07.6]} 50... Ng4+ {[%clk 0:00:03.7]} 51. Ke1
{[%clk 0:01:02.5]} 51... Ne5 {[%clk 0:00:03.3]} 52. Qh4+ {[%clk 0:01:00.8]} 1-0

[Event "*** Titled Tuesday Blitz"]
[Site "Chess.com"]
[Date "2021.04.06"]
[Round "2"]
[White "vinniethepooh"]
[Black "VD_coach"]
[Result "1-0"]
[WhiteElo "2735"]
[BlackElo "2505"]
[TimeControl "180+1"]
[EndTime "10:18:23 PDT"]
[Termination "vinniethepooh won by resignation"]

1. d4 {[%clk 0:03:00.9]} 1... Nf6 {[%clk 0:02:58]} 2. c4 {[%clk 0:03:01.3]} 2...
g6 {[%clk 0:02:57.7]} 3. Nc3 {[%clk 0:03:01.5]} 3... Bg7 {[%clk 0:02:58]} 4. e4
{[%clk 0:03:01.7]} 4... d6 {[%clk 0:02:58]} 5. Be2 {[%clk 0:03:02.2]} 5... O-O
{[%clk 0:02:58.4]} 6. Be3 {[%clk 0:03:02.7]} 6... a6 {[%clk 0:02:53.2]} 7. f4
{[%clk 0:02:58.6]} 7... b6 {[%clk 0:02:50.7]} 8. e5 {[%clk 0:02:55.4]} 8... Nfd7
{[%clk 0:02:47.1]} 9. Bf3 {[%clk 0:02:54.6]} 9... Ra7 {[%clk 0:02:46.6]} 10. h4
{[%clk 0:02:54.4]} 10... c5 {[%clk 0:02:46.5]} 11. Qe2 {[%clk 0:02:37.8]} 11...
cxd4 {[%clk 0:02:29.8]} 12. Bxd4 {[%clk 0:02:38.7]} 12... Bb7 {[%clk 0:02:29.7]}
13. h5 {[%clk 0:02:33.1]} 13... dxe5 {[%clk 0:02:21.9]} 14. fxe5 {[%clk
0:02:29.6]} 14... Nc6 {[%clk 0:02:21.9]} 15. O-O-O {[%clk 0:02:02.8]} 15... Nxd4
{[%clk 0:02:15.6]} 16. Rxd4 {[%clk 0:02:03.7]} 16... Qc7 {[%clk 0:02:08.1]} 17.
Bxb7 {[%clk 0:01:56.2]} 17... Rxb7 {[%clk 0:01:50.3]} 18. Nd5 {[%clk 0:01:39.6]}
18... Qxe5 {[%clk 0:01:44.2]} 19. Nxe7+ {[%clk 0:01:37.1]} 19... Qxe7 {[%clk
0:01:01.2]} 20. Qxe7 {[%clk 0:01:35.4]} 20... Bxd4 {[%clk 0:01:01.1]} 21. Nf3
{[%clk 0:01:30.3]} 21... Nc5 {[%clk 0:00:49.2]} 22. Qh4 {[%clk 0:01:29.9]} 22...
Be3+ {[%clk 0:00:46.6]} 23. Kc2 {[%clk 0:01:29.2]} 23... Re8 {[%clk 0:00:40.8]}
24. h6 {[%clk 0:01:02.2]} 24... Ne6 {[%clk 0:00:20.6]} 25. Re1 {[%clk
0:00:58.8]} 25... Bc5 {[%clk 0:00:18.9]} 26. Ng5 {[%clk 0:00:45]} 26... Be7
{[%clk 0:00:17.9]} 27. Qe4 {[%clk 0:00:23]} 27... Nc5 {[%clk 0:00:11.4]} 28. Qd5
{[%clk 0:00:23.1]} 28... Rf8 {[%clk 0:00:05.5]} 29. Qe5 {[%clk 0:00:23.1]} 29...
f6 {[%clk 0:00:03.5]} 30. Qd5+ {[%clk 0:00:23.5]} 30... Kh8 {[%clk 0:00:03.6]}
31. Nf7+ {[%clk 0:00:24]} 31... Kg8 {[%clk 0:00:02.2]} 32. Nd6+ {[%clk
0:00:22.5]} 1-0

[Event "*** Titled Tuesday Blitz"]
[Site "Chess.com"]
[Date "2021.04.06"]
[Round "2"]
[White "FMalexhdez"]
[Black "crazy_but_lazy"]
[Result "0-1"]
[WhiteElo "2181"]
[BlackElo "2421"]
[TimeControl "180+1"]
[EndTime "10:18:25 PDT"]
[Termination "crazy_but_lazy won by resignation"]

1. e4 {[%clk 0:03:00.9]} 1... c5 {[%clk 0:02:57.6]} 2. Nf3 {[%clk 0:03:00.8]}
2... Nc6 {[%clk 0:02:57.9]} 3. d4 {[%clk 0:03:01.3]} 3... cxd4 {[%clk
0:02:57.9]} 4. Nxd4 {[%clk 0:03:01.9]} 4... Qb6 {[%clk 0:02:58.5]} 5. Nb3 {[%clk
0:03:00.7]} 5... e6 {[%clk 0:02:58.3]} 6. Nc3 {[%clk 0:02:59.8]} 6... Nf6 {[%clk
0:02:55.8]} 7. Be3 {[%clk 0:02:58.9]} 7... Qc7 {[%clk 0:02:55]} 8. g3 {[%clk
0:02:58.2]} 8... Bb4 {[%clk 0:02:46.5]} 9. Bg2 {[%clk 0:02:58.1]} 9... O-O
{[%clk 0:02:26.9]} 10. O-O {[%clk 0:02:57.9]} 10... Bxc3 {[%clk 0:02:22.3]} 11.
bxc3 {[%clk 0:02:57.3]} 11... d6 {[%clk 0:02:23]} 12. Nd4 {[%clk 0:02:50.1]}
12... a6 {[%clk 0:02:19.6]} 13. f4 {[%clk 0:02:44.8]} 13... Rd8 {[%clk
0:02:15.3]} 14. Qe2 {[%clk 0:02:32.2]} 14... Na5 {[%clk 0:02:13.8]} 15. Bd2
{[%clk 0:02:05.1]} 15... Nc4 {[%clk 0:02:10.8]} 16. Be1 {[%clk 0:02:00.8]} 16...
e5 {[%clk 0:02:08.2]} 17. Nf5 {[%clk 0:01:55]} 17... Bxf5 {[%clk 0:01:22.2]} 18.
exf5 {[%clk 0:01:54.3]} 18... e4 {[%clk 0:01:19.2]} 19. Kh1 {[%clk 0:01:32.4]}
19... d5 {[%clk 0:01:12.3]} 20. g4 {[%clk 0:01:31.4]} 20... h5 {[%clk
0:00:56.9]} 21. g5 {[%clk 0:01:30.9]} 21... Ng4 {[%clk 0:00:57.3]} 22. h3 {[%clk
0:01:23.6]} 22... Nge3 {[%clk 0:00:55.4]} 23. Rf2 {[%clk 0:01:00.9]} 23... Nxg2
{[%clk 0:00:54.1]} 24. Kxg2 {[%clk 0:01:00.1]} 24... e3 {[%clk 0:00:39.4]} 25.
Rf1 {[%clk 0:00:56.3]} 25... Re8 {[%clk 0:00:38.1]} 26. Qxh5 {[%clk 0:00:48.9]}
26... e2 {[%clk 0:00:38.5]} 27. Rf3 {[%clk 0:00:44.4]} 27... Ne3+ {[%clk
0:00:37.6]} 28. Kh1 {[%clk 0:00:20.3]} 28... Nxf5 {[%clk 0:00:37.5]} 29. g6
{[%clk 0:00:15.2]} 29... fxg6 {[%clk 0:00:36.9]} 30. Qxg6 {[%clk 0:00:15.1]}
30... Qf7 {[%clk 0:00:36.8]} 31. Qxf7+ {[%clk 0:00:12.3]} 31... Kxf7 {[%clk
0:00:37.7]} 32. Bf2 {[%clk 0:00:10.2]} 32... Re4 {[%clk 0:00:32.4]} 33. Re1
{[%clk 0:00:09.7]} 33... Rae8 {[%clk 0:00:23.7]} 34. Kg1 {[%clk 0:00:09.1]}
34... Ra4 {[%clk 0:00:20.6]} 35. Bc5 {[%clk 0:00:02.2]} 35... Rxa2 {[%clk
0:00:18.9]} 36. Kf2 {[%clk 0:00:02.6]} 36... Rxc2 {[%clk 0:00:19.3]} 0-1

[Event "*** Titled Tuesday Blitz"]
[Site "Chess.com"]
[Date "2021.04.06"]
[Round "2"]
[White "LordIron"]
[Black "retropwr"]
[Result "1-0"]
[WhiteElo "2257"]
[BlackElo "2428"]
[TimeControl "180+1"]
[EndTime "10:18:26 PDT"]
[Termination "LordIron won on time"]

1. d4 {[%clk 0:02:57.1]} 1... d6 {[%clk 0:02:58.9]} 2. Nf3 {[%clk 0:02:57.5]}
2... g6 {[%clk 0:02:58.5]} 3. g3 {[%clk 0:02:57.8]} 3... Bg7 {[%clk 0:02:59.4]}
4. Bg2 {[%clk 0:02:58.1]} 4... Nd7 {[%clk 0:02:59.9]} 5. c4 {[%clk 0:02:58.5]}
5... e5 {[%clk 0:03:00]} 6. dxe5 {[%clk 0:02:58.6]} 6... dxe5 {[%clk 0:02:59.3]}
7. O-O {[%clk 0:02:58.9]} 7... Ne7 {[%clk 0:02:59.8]} 8. Nc3 {[%clk 0:02:58.1]}
8... O-O {[%clk 0:03:00.1]} 9. e3 {[%clk 0:02:58.2]} 9... Nc5 {[%clk 0:02:52.2]}
10. b4 {[%clk 0:02:53.9]} 10... Ne6 {[%clk 0:02:28.4]} 11. Bb2 {[%clk
0:02:52.5]} 11... f5 {[%clk 0:02:16.3]} 12. Qb3 {[%clk 0:02:50]} 12... e4 {[%clk
0:02:09.6]} 13. Rfd1 {[%clk 0:02:42.8]} 13... Qe8 {[%clk 0:02:08.5]} 14. Nd4
{[%clk 0:02:38.5]} 14... Qf7 {[%clk 0:02:08.4]} 15. Nd5 {[%clk 0:02:29.9]} 15...
Nxd4 {[%clk 0:01:24.8]} 16. Bxd4 {[%clk 0:02:28]} 16... Nc6 {[%clk 0:01:23.8]}
17. Bxg7 {[%clk 0:02:18.4]} 17... Qxg7 {[%clk 0:01:24.4]} 18. h4 {[%clk
0:01:57.7]} 18... Be6 {[%clk 0:01:23.2]} 19. Nf4 {[%clk 0:01:50.7]} 19... Bf7
{[%clk 0:01:13]} 20. Rac1 {[%clk 0:01:50.3]} 20... Rfd8 {[%clk 0:01:07.9]} 21.
Bf1 {[%clk 0:01:46.6]} 21... Ne5 {[%clk 0:01:03.5]} 22. Be2 {[%clk 0:01:24.1]}
22... c6 {[%clk 0:01:03.4]} 23. Rd4 {[%clk 0:01:19.2]} 23... b5 {[%clk
0:00:59.1]} 24. Rcd1 {[%clk 0:01:10.3]} 24... Rxd4 {[%clk 0:00:59.1]} 25. Rxd4
{[%clk 0:01:09.3]} 25... Nxc4 {[%clk 0:00:47.1]} 26. Rd7 {[%clk 0:01:08]} 26...
Qf6 {[%clk 0:00:32]} 27. Qd1 {[%clk 0:00:47.1]} 27... a5 {[%clk 0:00:28.1]} 28.
bxa5 {[%clk 0:00:43.7]} 28... Rxa5 {[%clk 0:00:20.7]} 29. Rxf7 {[%clk
0:00:34.8]} 29... Kxf7 {[%clk 0:00:12.4]} 30. Qd7+ {[%clk 0:00:26.7]} 30... Qe7
{[%clk 0:00:10.1]} 31. Qxc6 {[%clk 0:00:26.4]} 31... Rxa2 {[%clk 0:00:05.7]} 32.
Bxc4+ {[%clk 0:00:25.9]} 32... bxc4 {[%clk 0:00:02.2]} 33. Qxc4+ {[%clk
0:00:26.8]} 33... Kg7 {[%clk 0:00:01.7]} 34. Qxa2 {[%clk 0:00:26.4]} 34... Kh6
{[%clk 0:00:01.8]} 35. Qb2 {[%clk 0:00:25.2]} 35... Qc7 {[%clk 0:00:01.7]} 36.
Qd4 {[%clk 0:00:24.5]} 1-0

[Event "*** Titled Tuesday Blitz"]
[Site "Chess.com"]
[Date "2021.04.06"]
[Round "2"]
[White "Zmof"]
[Black "banane_verte"]
[Result "0-1"]
[WhiteElo "2199"]
[BlackElo "2431"]
[TimeControl "180+1"]
[EndTime "10:18:26 PDT"]
[Termination "banane_verte won by resignation"]

1. e4 {[%clk 0:03:00.9]} 1... d5 {[%clk 0:02:53]} 2. exd5 {[%clk 0:02:59.9]}
2... Qxd5 {[%clk 0:02:03.1]} 3. Nc3 {[%clk 0:02:57.1]} 3... Qa5 {[%clk
0:02:02.3]} 4. d4 {[%clk 0:02:57.1]} 4... Nf6 {[%clk 0:01:51.9]} 5. Bd2 {[%clk
0:02:57.1]} 5... c6 {[%clk 0:01:52]} 6. Nf3 {[%clk 0:02:56.2]} 6... Bg4 {[%clk
0:01:51.8]} 7. h3 {[%clk 0:02:45.8]} 7... Bxf3 {[%clk 0:01:43.6]} 8. Qxf3 {[%clk
0:02:45.2]} 8... e6 {[%clk 0:01:44.5]} 9. Bd3 {[%clk 0:02:34.1]} 9... Nbd7
{[%clk 0:01:44.4]} 10. O-O {[%clk 0:02:33.7]} 10... Qc7 {[%clk 0:01:43.4]} 11.
Bf4 {[%clk 0:02:32.8]} 11... Bd6 {[%clk 0:01:42.2]} 12. Bxd6 {[%clk 0:02:32.3]}
12... Qxd6 {[%clk 0:01:43.1]} 13. Qe3 {[%clk 0:02:21.7]} 13... O-O {[%clk
0:01:42.6]} 14. Ne4 {[%clk 0:02:19.2]} 14... Nxe4 {[%clk 0:01:42.8]} 15. Qxe4
{[%clk 0:02:19.7]} 15... Nf6 {[%clk 0:01:43.4]} 16. Qh4 {[%clk 0:02:17.4]} 16...
Rad8 {[%clk 0:01:44.3]} 17. c3 {[%clk 0:02:17.1]} 17... c5 {[%clk 0:01:44.3]}
18. Rad1 {[%clk 0:02:17]} 18... cxd4 {[%clk 0:01:44.3]} 19. Bb1 {[%clk
0:02:00.8]} 19... Qc5 {[%clk 0:01:40.6]} 20. cxd4 {[%clk 0:01:51.3]} 20... Qb6
{[%clk 0:01:39.8]} 21. b3 {[%clk 0:01:46.7]} 21... Rd5 {[%clk 0:01:36.1]} 22.
Rfe1 {[%clk 0:01:41.9]} 22... Rfd8 {[%clk 0:01:32.4]} 23. Be4 {[%clk 0:01:32.7]}
23... Rxd4 {[%clk 0:01:28.5]} 24. Rxd4 {[%clk 0:01:26.2]} 24... Qxd4 {[%clk
0:01:29.4]} 25. Qg5 {[%clk 0:01:16.5]} 25... Nxe4 {[%clk 0:01:27.6]} 26. Rxe4
{[%clk 0:01:15.5]} 26... Qd1+ {[%clk 0:01:25]} 27. Kh2 {[%clk 0:01:15.9]} 27...
h6 {[%clk 0:01:23.4]} 28. Qb5 {[%clk 0:01:05.6]} 28... b6 {[%clk 0:01:22.2]} 29.
Qa6 {[%clk 0:01:03.3]} 29... Qd7 {[%clk 0:01:17.1]} 30. Rc4 {[%clk 0:01:01.1]}
30... e5 {[%clk 0:01:09.3]} 31. g3 {[%clk 0:01:00.5]} 31... f5 {[%clk
0:01:08.8]} 32. Rc3 {[%clk 0:00:46.1]} 32... e4 {[%clk 0:01:07.5]} 33. Qc4+
{[%clk 0:00:38.1]} 33... Kh7 {[%clk 0:01:07.5]} 34. Qc7 {[%clk 0:00:35.5]} 34...
Qxc7 {[%clk 0:01:06.5]} 35. Rxc7 {[%clk 0:00:35.1]} 35... Rd2 {[%clk 0:01:07.4]}
36. Kg1 {[%clk 0:00:31.8]} 36... Rxa2 {[%clk 0:01:07.2]} 37. g4 {[%clk
0:00:31.2]} 37... f4 {[%clk 0:01:02.8]} 38. Re7 {[%clk 0:00:30.1]} 38... Re2
{[%clk 0:01:03.3]} 39. Kf1 {[%clk 0:00:30.2]} 39... f3 {[%clk 0:01:03.6]} 40. b4
{[%clk 0:00:30.2]} 40... Rb2 {[%clk 0:01:01.8]} 41. Rxe4 {[%clk 0:00:28]} 41...
Rb1+ {[%clk 0:01:00.8]} 42. Re1 {[%clk 0:00:28.6]} 42... Rxb4 {[%clk 0:01:01.7]}
43. Ra1 {[%clk 0:00:25]} 43... a5 {[%clk 0:01:01.5]} 44. Ke1 {[%clk 0:00:25.6]}
44... Rb2 {[%clk 0:01:01.5]} 45. Ra3 {[%clk 0:00:24.2]} 45... Re2+ {[%clk
0:00:56.2]} 46. Kf1 {[%clk 0:00:22.2]} 46... Re8 {[%clk 0:00:52.6]} 47. Rxf3
{[%clk 0:00:20.6]} 47... a4 {[%clk 0:00:53.2]} 48. Rf4 {[%clk 0:00:13.8]} 48...
b5 {[%clk 0:00:53.1]} 49. Rb4 {[%clk 0:00:13.6]} 49... Rb8 {[%clk 0:00:53.8]}
50. Ke2 {[%clk 0:00:12.4]} 50... a3 {[%clk 0:00:54.5]} 51. Rb3 {[%clk
0:00:12.4]} 51... b4 {[%clk 0:00:51.6]} 52. Rb1 {[%clk 0:00:10.5]} 52... a2
{[%clk 0:00:51.6]} 0-1